[Event "31st Kavala Open-A 2022"]
[Site "Kavala"]
[Date "2022.07.27"]
[Round "3.15"]
[White "Tsakona, Maria"]
[Black "Santiago, Yago De Moura"]
[Result "0-1"]
[ECO "A48"]
[WhiteElo "2007"]
[BlackElo "2513"]
[Annotator "TA"]
[PlyCount "84"]
[EventDate "2022.07.27"]
[EventType "swiss"]
[EventCountry "GRE"]
[SourceTitle "playchess.com"]
[Source "ChessBase"]
[SourceQuality "1"]
[TimeControl "40/5400+30:1800+30"]

{[%evp 19,84,0,0,4,0,8,0,-8,0,-4,17,14,19,18,15,18,11,11,9,20,25,-33,20,25,192,-109,0,0,0,0,0,-200,-199,-196,-195,-195,-202,-191,-198,-180,-191,-194,-189,-190,-181,-175,-190,-204,-153,-143,-50,-49,-12,-125,-108,-222,-92,-93,-44,-308,-293,-510,-505,-481,-331,-339,-326]} 1. d4 {[%emt 0:03:59]} Nf6 {[%emt 0:01:43]} 2. Nf3 {[%emt 0:00:17]} g6 {[%emt 0:00:20]} 3. Bg5 {[%emt 0:00:03]} Bg7 {[%emt 0:00:09]} 4. Nbd2 {[%emt 0:00:05]} O-O {[%emt 0:00:17]} 5. c3 {[%emt 0:00:02]} d6 {[%emt 0:00:29]} 6. e4 {[%emt 0:00:07]} c5 {[%emt 0:00:16]} 7. dxc5 {[%emt 0:00:11]} dxc5 {[%emt 0:00:08]} 8. Be2 {[%emt 0:00:20]} Nc6 {[%emt 0:01:12]} 9. Qc2 {[%emt 0:00:40]} Qc7 {[%emt 0:00:27]} 10. O-O {[%emt 0:00:24]} h6 {[%emt 0:06:59]} 11. Bh4 {[%emt 0:00:06] A48: 1 d4 Nf6 2 Nf3 g6: Torre, London and Colle Systems.} Nh5 {[%emt 0:00:30]} 12. Nc4 {[%emt 0:03:09] is the new trend.} b6 {[%emt 0:23:56]} 13. Ne3 {[%emt 0:02:55] The position is equal.} e6 {[%emt 0:01:42] Against Nd5} 14. a4 {[%emt 0:04:26]} g5 {[%emt 0:07:15]} 15. Bg3 {[%emt 0:00:06]} Nxg3 {[%emt 0:00:34]} 16. hxg3 {[%emt 0:00:05]} Bb7 {[%emt 0:00:28] [#]} 17. Nh2 $146 {[%emt 0:05:39]} ({Predecessor:} 17. Rfe1 Rac8 18. Rad1 Qe7 19. Bc4 h5 20. Ba2 g4 21. Nd2 Ne5 22. Ndc4 Rfd8 23. Bb1 {0-1 (55) Yapparov,T (2179)-Chigaev,M (2550) St Petersburg 2016}) 17... Na5 {[%emt 0:12:52]} 18. f4 {[%emt 0:01:00]} c4 {[%emt 0:03:09]} 19. Rae1 {[%emt 0:08:03]} Qc5 {[%emt 0:03:12]} 20. Bg4 {[%emt 0:05:59]} (20. Bf3 $1 $11) 20... h5 {[%emt 0:07:20]} (20... Rad8 $15) 21. f5 $1 $11 {[%emt 0:13:23]} Be5 $2 {[%emt 0:08:55]} (21... hxg4 $11 {and Black has nothing to worry.} 22. f6 Bh8) 22. f6 $2 {[%emt 0:33:29]} Bxg3 {[%emt 0:09:51] A strong pair of Bishops.} (22... hxg4 $17 23. Nhxg4 Rfd8) 23. Qe2 {[%emt 0:04:51][%cal Og4f5]} Bxh2+ {[%emt 0:07:21]} (23... Bxe4 24. Bf5 Bxe1 25. Bxe4 $18) (23... Bxe1 24. Rxe1 hxg4 25. Nhxg4 Bxe4 26. Nh6+ Kh8 27. Qh5 $17) 24. Kxh2 {[%emt 0:01:29][%cal Og4f5] [#] Black must now prevent Bf5!} Bxe4 {[%emt 0:01:20] ...Bd3 is the strong threat.} (24... hxg4 $6 25. Qxg4 Rfd8 26. Qh3 Qe5+ 27. Kg1 Qxe4 28. Nf5 Qxg2+ 29. Qxg2 Bxg2 30. Ne7+ Kf8 31. Kxg2 $17) 25. Bf5 $2 {[%emt 0:04:56]} exf5 $19 {[%emt 0:01:25]} 26. Qxh5 {[%emt 0:06:12]} Qd6+ {[%emt 0:00:46]} 27. Kg1 {[%emt 0:00:05]} Qxf6 {[%emt 0:00:07]} 28. Rxf5 {[%emt 0:01:02]} Bxf5 {[%emt 0:00:08]} 29. Nd5 {[%emt 0:00:04]} Qg6 {[%emt 0:01:07]} ({Inferior is} 29... Qd8 30. Ne7+ Qxe7 31. Rxe7) 30. Ne7+ {[%emt 0:00:46]} Kg7 {[%emt 0:00:02]} 31. Nxg6 {[%emt 0:00:06]} Bxg6 {[%emt 0:00:38]} ({Stronger than} 31... fxg6 32. Re7+ Rf7 33. Qxg5 $17) 32. Qxg5 {[%emt 0:00:09]} Rac8 {[%emt 0:01:06]} 33. Qe5+ {[%emt 0:01:14]} Kg8 {[%emt 0:00:01]} 34. Qf6 {[%emt 0:01:07]} Rc5 {[%emt 0:00:55]} (34... Rfd8 $17 35. Qe7 Nc6) 35. Re3 $1 $15 {[%emt 0:00:33]} Rf5 {[%emt 0:00:45]} 36. Qd6 {[%emt 0:00:34]} (36. Qe7 $1 $11) 36... Nb7 $17 {[%emt 0:00:33]} 37. Qd4 {[%emt 0:00:17]} (37. Qe7 $17 Nc5 38. Qxa7) 37... Nc5 {[%emt 0:00:15]} (37... Rd8 $19 38. Qxc4 Rd1+ 39. Kh2 Nd6) 38. Rh3 {[%emt 0:00:28][%csl Gd4][%cal Rh3h8] [#]} Rh5 {[%emt 0:00:25] Prevents Rh8+.} ({Black should play} 38... f6 $1 $17 {Threatens to win with ...Kg7.} 39. Qxc4+ Rf7) 39. Rg3 $2 {[%emt 0:00:53][%mdl 8192]} ({White should try} 39. Rxh5 $15 Bxh5 40. Qxc4) 39... Re8 $19 {[%emt 0:00:21]} ({Not} 39... Nxa4 40. Qxc4 Nxb2 41. Rxg6+ Kh7 42. Qb4 Kxg6 43. Qxf8 $14) 40. Qxc4 $2 {[%emt 0:00:00]} (40. Rh3) 40... Re1+ {[%emt 0:00:00]} 41. Kf2 {[%emt 0:00:47]} Re6 {[%emt 0:01:22]} 42. Rh3 {[%emt 0:05:22]} Re4 {[%emt 0:03:32] Weighted Error Value: White=0.54/Black=0.29 (precise)} 0-1

[Event "31st Kavala Open-A 2022"]
[Site "Kavala"]
[Date "2022.07.27"]
[Round "3.16"]
[White "Zawadzka, Jolanta"]
[Black "Abrahams, Daniel"]
[Result "1-0"]
[ECO "B42"]
[WhiteElo "2416"]
[BlackElo "2126"]
[Annotator "TA"]
[PlyCount "87"]
[EventDate "2022.07.27"]
[EventType "swiss"]
[EventCountry "GRE"]
[SourceTitle "playchess.com"]
[Source "ChessBase"]
[SourceQuality "1"]
[TimeControl "40/5400+30:1800+30"]

{[%evp 12,87,41,31,32,35,36,19,36,10,44,43,30,-16,16,-22,-19,-18,-11,-27,32,29,35,-34,-26,-29,-22,-50,46,43,67,45,77,53,74,-39,-37,-77,16,12,24,0,30,13,25,15,56,8,63,0,0,0,0,0,1258,1256,1243,1239,1200,1182,1056,545,543,550,539,398,524,401,369,338,1542,1389,2239,2195,1689,773,29986,3414]} 1. e4 {[%emt 0:03:21]} c5 {[%emt 0:00:06]} 2. Nf3 {[%emt 0:00:04]} e6 {[%emt 0:00:09]} 3. d4 {[%emt 0:00:07]} cxd4 {[%emt 0:00:10]} 4. Nxd4 {[%emt 0:00:04]} a6 {[%emt 0:00:08]} 5. Bd3 {[%emt 0:00:13]} Bc5 {[%emt 0:00:53]} 6. Nb3 {[%emt 0:00:09]} Ba7 {[%emt 0:00:06]} 7. Qe2 {[%emt 0:02:15]} Ne7 {[%emt 0:00:30] B42: Sicilian: Kan Variation: 5 Bd3.} 8. Be3 {[%emt 0:06:42]} O-O {[%emt 0:02:39]} 9. N1d2 {[%emt 0:01:18] 9.Bxa7 is setting a new trend.} Nbc6 {[%emt 0:00:59] The position is equal.} 10. c3 {[%emt 0:08:17] [#]} d5 $146 {[%emt 0:05:24]} ({Predecessor:} 10... d6 11. O-O e5 12. Rad1 Be6 13. Bxa7 Rxa7 14. Nc4 b5 15. Ne3 Qb6 16. Bb1 Rd8 {0-1 (32) Bashirov,T (2238)-Iskandarov,M (2502) Cesme 2019}) 11. Bxa7 {[%emt 0:14:57]} Rxa7 {[%emt 0:00:17]} 12. O-O-O {[%emt 0:01:42]} (12. O-O {is more appropriate.}) 12... a5 {[%emt 0:01:25][%cal Ba6a5,Ba5a4,Ba4a3][%mdl 32]} 13. Nf3 {[%emt 0:05:54]} a4 $1 {[%emt 0:03:00]} 14. Nbd4 {[%emt 0:01:13]} Nxd4 {[%emt 0:00:27]} 15. Nxd4 {[%emt 0:00:42]} Ra5 {[%emt 0:01:12]} (15... a3 $1 $11) 16. Kb1 $36 {[%emt 0:09:54][%mdl 2048] White has some pressure.} Bd7 {[%emt 0:01:40]} 17. h4 {[%emt 0:02:17]} (17. a3 $14) 17... a3 $15 {[%emt 0:07:16]} 18. b4 {[%emt 0:07:33]} Ra8 {[%emt 0:00:49]} 19. h5 {[%emt 0:03:50]} e5 {[%emt 0:07:37]} (19... Qc7 $15 20. Rc1 e5) 20. Nb3 $14 {[%emt 0:01:06]} d4 {[%emt 0:00:43]} 21. cxd4 {[%emt 0:01:23]} Qb6 {[%emt 0:00:18][%csl LRb4,LRd4]} 22. b5 {[%emt 0:02:39] Prevents Nc6.} exd4 {[%emt 0:01:09] [#]} 23. Bc4 {[%emt 0:01:12]} (23. h6 $1 $16 {[%cal Rh6g7]}) 23... Ra4 $15 {[%emt 0:00:36]} 24. h6 {[%emt 0:04:26]} g6 {[%emt 0:01:54]} ({Better is} 24... gxh6 $17 25. Ka1 (25. Nxd4 Rc8 $17) (25. Rxd4 Bxb5 26. Bxb5 Rxd4 $17) 25... Rc8) 25. Rc1 $11 {[%emt 0:02:10]} Be6 {[%emt 0:02:24]} (25... Rc8 $5 {[%cal Ra4b4]}) 26. Bxe6 {[%emt 0:02:41]} Qxe6 {[%emt 0:01:42]} 27. Qd3 {[%emt 0:01:45]} Rb4 {[%emt 0:06:57]} 28. Ka1 {[%emt 0:00:39]} Qe5 {[%emt 0:02:18]} 29. Rhd1 {[%emt 0:03:23]} (29. Nc5 $14) 29... Rd8 {[%emt 0:01:34]} (29... b6 $11) 30. Rc5 {[%emt 0:00:41]} (30. Nc5 $1 $14) 30... Qd6 {[%emt 0:02:51][%cal Ob4b3] Strongly threatening ...Rxb3!} 31. Rdc1 {[%emt 0:03:24]} b6 {[%emt 0:13:57]} 32. Rc7 {[%emt 0:00:16]} Rd7 $2 {[%emt 0:00:23][%mdl 8192] [#]} (32... g5 $11) 33. Qg3 $1 $18 {[%emt 0:04:04] Rxd7 would kill now.} Kf8 {[%emt 0:02:03]} 34. Rxd7 {[%emt 0:00:32]} Qxd7 {[%emt 0:00:26]} 35. Qe5 {[%emt 0:02:32]} d3 {[%emt 0:01:16]} 36. Qg7+ {[%emt 0:01:06]} Ke8 {[%emt 0:00:12]} 37. Qh8+ {[%emt 0:00:06]} Ng8 {[%emt 0:00:09]} 38. Qxg8+ {[%emt 0:01:33]} Ke7 {[%emt 0:00:04]} 39. Qg7 {[%emt 0:00:17]} Rxe4 {[%emt 0:00:23]} 40. Qc3 {[%emt 0:00:00]} (40. Qxh7 {gets mated.} d2 41. Qh8 dxc1=Q+ 42. Nxc1 Qd2) 40... Re2 $2 {[%emt 0:00:00]} (40... Qxb5 41. Qc7+ Qd7 42. Qxb6 Re6 43. Qb4+ Qd6 44. Rc7+ Kf8) 41. Nd4 {[%emt 0:05:56]} Re4 {[%emt 0:04:30]} 42. Nc6+ {[%emt 0:02:30]} Ke6 {[%emt 0:00:34]} 43. Rd1 {[%emt 0:03:40]} (43. f3 $142 Re2 44. Rd1) 43... d2 {[%emt 0:00:15]} 44. f3 {[%emt 0:00:46] Weighted Error Value: White=0.45/Black=0.51} 1-0

[Event "31st Kavala Open-A 2022"]
[Site "Kavala"]
[Date "2022.07.28"]
[Round "4.1"]
[White "Kourkoulos-Arditis, Stamatis"]
[Black "Halkias, Stelios"]
[Result "1/2-1/2"]
[ECO "D38"]
[WhiteElo "2535"]
[BlackElo "2512"]
[Annotator "TA"]
[PlyCount "34"]
[EventDate "2022.07.27"]
[EventType "swiss"]
[EventCountry "GRE"]
[SourceTitle "playchess.com"]
[Source "ChessBase"]
[SourceQuality "1"]
[TimeControl "40/5400+30:1800+30"]

{[%evp 12,21,28,22,26,0,13,0,0,-3,0,-8]} 1. d4 {[%emt 0:00:03]} Nf6 {[%emt 0:12:44]} 2. c4 {[%emt 0:00:45]} e6 {[%emt 0:00:25]} 3. Nf3 {[%emt 0:00:07]} d5 {[%emt 0:00:20]} 4. Nc3 {[%emt 0:00:52]} Bb4 {[%emt 0:00:54]} 5. cxd5 {[%emt 0:00:18]} exd5 {[%emt 0:00:13]} 6. Bg5 {[%emt 0:00:04]} h6 {[%emt 0:00:08]} 7. Bh4 {[%emt 0:00:05]} Bf5 $1 {[%emt 0:00:50][%mdl 4] 7...Bf5 is a critical line. D38: Queen's Gambit Declined: Ragozin Defence (4 Nf3 Bb4).} 8. e3 {[%emt 0:02:19]} Nbd7 {[%emt 0:01:26] The position is equal.} 9. Qb3 {[%emt 0:00:25]} Ba5 {[%emt 0:00:53]} 10. Be2 {[%emt 0:04:25]} c6 {[%emt 0:00:58]} 11. O-O {[%emt 0:00:53] [#] Not much happened in this game.  Weighted Error Value: White=0.09 (flawless) /Black=0.00 (flawless)} ({But not} 11. Qxb7 Rb8 12. Bxf6 Nxf6 $17) {Predecessor:} 11... Qb6 $146 12. Nd2 O-O 13. Rfc1 Rfe8 14. Bg3 Re6 15. a3 Qxb3 16. Nxb3 Bd8 17. Nd2 a5 {½-½ (41) Sarana,A (2649)-Yu,Y (2704) Riga 2021} 1/2-1/2

[Event "31st Kavala Open-A 2022"]
[Site "Kavala"]
[Date "2022.07.28"]
[Round "4.2"]
[White "Kilic, Eray"]
[Black "Gopal G.N."]
[Result "1-0"]
[ECO "B51"]
[WhiteElo "2422"]
[BlackElo "2593"]
[Annotator "TA"]
[PlyCount "107"]
[EventDate "2022.07.27"]
[EventType "swiss"]
[EventCountry "GRE"]
[SourceTitle "playchess.com"]
[Source "ChessBase"]
[SourceQuality "1"]
[TimeControl "40/5400+30:1800+30"]

{[%evp 9,107,10,6,0,7,16,10,22,22,9,10,14,28,17,18,28,43,42,96,86,106,94,94,92,108,110,109,102,266,52,61,58,47,38,41,36,45,41,43,38,39,38,64,18,26,21,25,0,27,32,83,61,124,115,122,119,117,113,140,137,131,88,329,335,333,326,310,263,580,545,1487,1445,1381,1408,957,867,12841,12841,12841,12842,12842,12843,12845,12845,12845,12846,12846,12847,12847,12847,12848,12848,12850,12850,12850,12848,12849,12847,12848,12848]} 1. e4 {[%emt 0:00:02]} c5 {[%emt 0:00:04]} 2. Nf3 {[%emt 0:00:05]} d6 {[%emt 0:00:04]} 3. Bb5+ {[%emt 0:00:08]} Nd7 {[%emt 0:00:04]} 4. d4 {[%emt 0:00:07]} cxd4 {[%emt 0:00:29]} 5. Nxd4 {[%emt 0:00:05]} Ngf6 {[%emt 0:01:03]} 6. O-O {[%emt 0:00:14] B51: Sicilian: Moscow Variation (3 Bb5+) without 3...Bd7.} a6 {[%emt 0:06:36]} 7. Bd3 {[%emt 0:00:14]} Nc5 {[%emt 0:06:32]} 8. Nc3 {[%emt 0:00:07] The position is equal.} e6 {[%emt 0:01:31]} 9. Be3 {[%emt 0:01:05]} Be7 {[%emt 0:11:18]} 10. f4 {[%emt 0:00:53][%cal Bf2f4,Bf4e5][%mdl 32]} Qc7 {[%emt 0:05:13] [#]} 11. Nb3 $146 {[%emt 0:00:45]} ({Predecessor:} 11. Qf3 b5 12. e5 Bb7 13. Qg3 Nh5 14. Qg4 g6 15. f5 Nxd3 16. cxd3 dxe5 17. fxe6 {0-1 (33) Garcia Ruiz Fuentes,A (1952)-Gomez Gonzalez,J (2141) Madrid 2013}) 11... Nxd3 {[%emt 0:06:27]} 12. cxd3 {[%emt 0:00:30]} b5 {[%emt 0:03:01]} 13. Rc1 {[%emt 0:00:31][%cal Oc3b5,Ba1c1,Bc1c7,Bc7f7][%mdl 32] Black must now prevent Nxb5!} Qd8 {[%emt 0:02:46]} (13... Qb8 $1 $14) 14. e5 $16 {[%emt 0:06:47]} dxe5 {[%emt 0:07:04]} 15. fxe5 {[%emt 0:00:31]} Nd5 {[%emt 0:00:22]} 16. Nxd5 {[%emt 0:04:02]} Qxd5 {[%emt 0:04:07]} 17. Qg4 {[%emt 0:08:33]} O-O {[%emt 0:06:29]} (17... Qxe5 $2 18. Bd4 Qd5 19. Rxf7 $3 $18 {[%mdl 512]}) 18. Rc7 $1 {[%emt 0:11:44]} Qxe5 $2 {[%emt 0:17:45] [#]} (18... Bd8 $2 19. Bh6 $1 Qxe5 20. d4 Bxc7 21. dxe5 Bxe5 22. Qe4 Bxb2 23. Qxa8 $18) (18... Qxd3 $16 19. Bh6 Qg6 20. Qxg6 hxg6 21. Rxe7 (21. Bxg7 Bd8 $15) 21... gxh6) 19. Bd4 $1 {[%emt 0:01:43]} Qg5 $14 {[%emt 0:00:31]} 20. Qf3 {[%emt 0:03:30] White is much more active. The black rooks are badly placed.} Bd6 $1 {[%emt 0:02:56]} 21. Rxf7 {[%emt 0:14:35]} Bd7 $1 {[%emt 0:01:01]} 22. Bxg7 {[%emt 0:11:18]} Bc6 $1 {[%emt 0:01:12]} 23. Qxc6 $40 {[%emt 0:03:35][%mdl 128] Black needs to defend precisely. Dancing on a razor blade.} (23. Bxf8 Bxf3 24. Rg7+ Qxg7 25. Bxg7 Bxg2 26. Kxg2 Kxg7 $11) (23. Rxf8+ $2 Rxf8 24. Bxf8 Bxf3 25. Rxf3 Bc7 $19) 23... Rxf7 {[%emt 0:00:11]} 24. Qxa8+ {[%emt 0:00:29]} Kxg7 {[%emt 0:00:01]} 25. Rxf7+ {[%emt 0:00:17]} Kxf7 {[%emt 0:00:01][%mdl 4096] Endgame KQB-KQN} 26. Qf3+ {[%emt 0:00:03]} (26. Qe4 $1 $14 {should be considered.}) 26... Ke7 $1 $11 {[%emt 0:04:02]} 27. Qb7+ {[%emt 0:02:23]} Kf6 {[%emt 0:03:26]} 28. Qf3+ {[%emt 0:01:43]} Ke7 $1 {[%emt 0:03:44]} (28... Qf4 29. Nd2 $14) 29. g3 {[%emt 0:00:40]} h5 {[%emt 0:00:47]} ({Black should try} 29... Qe5 $14) 30. Kg2 {[%emt 0:00:47]} Qe5 {[%emt 0:01:29]} (30... h4 $1 $14) 31. d4 $16 {[%emt 0:02:04]} Qg5 {[%emt 0:00:21]} 32. Qe4 {[%emt 0:01:46] Against h4} Kf6 {[%emt 0:02:34]} 33. Kf3 {[%emt 0:01:15]} b4 {[%emt 0:02:30]} 34. Ke2 {[%emt 0:03:24]} Qb5+ {[%emt 0:01:11]} 35. Qd3 {[%emt 0:00:44]} Qd5 {[%emt 0:00:24] Prevents Nc5.} (35... Qa4 $16) 36. Qf3+ $18 {[%emt 0:00:27]} ({Stronger than} 36. Qxa6 Qg2+ 37. Ke1 Qxh2 38. Qxd6 Qh1+ 39. Ke2 Qg2+ 40. Ke3 Qg1+ 41. Kf4 Qf2+ 42. Ke4 Qg2+ 43. Kf4 (43. Ke3 Qg1+ 44. Kf3 Qh1+ 45. Kf2 Qh2+ 46. Kf3 Qh1+ 47. Kf4 Qf1+ 48. Ke4 Qe2+ 49. Kf4 Qf2+ 50. Ke4 Qg2+ 51. Kf4 Qf2+ $11) 43... Qf2+ 44. Ke4 Qg2+ 45. Ke3 Qg1+ 46. Kf3 Qh1+ 47. Kf4 Qf1+ 48. Ke4 (48. Ke3 Qg1+ $11) 48... Qg2+ $11) 36... Kg5 {[%emt 0:00:33]} 37. Qxd5+ {[%emt 0:02:01]} exd5 {[%emt 0:00:01] KB-KN} 38. Kf3 {[%emt 0:00:33]} h4 $2 {[%emt 0:01:03]} (38... Bb8 {is more resistant.} 39. h4+ Kf5) 39. Nc5 {[%emt 0:03:12] White is clearly winning.} hxg3 {[%emt 0:00:02]} 40. hxg3 {[%emt 0:00:00]} a5 {[%emt 0:00:00]} 41. Ne6+ {[%emt 0:00:27]} Kf5 {[%emt 0:04:11]} 42. Nf4 {[%emt 0:00:14]} Bxf4 {[%emt 0:08:25]} 43. gxf4 {[%emt 0:00:02] KP-KP} a4 {[%emt 0:00:01] [#]} 44. Kg3 $1 {[%emt 0:08:06]} Ke4 {[%emt 0:00:13]} 45. Kg4 {[%emt 0:00:05]} Kd3 {[%emt 0:03:16]} 46. f5 {[%emt 0:06:15]} Kc2 {[%emt 0:00:23] [#]} 47. b3 $1 {[%emt 0:00:04]} a3 {[%emt 0:04:15]} 48. f6 {[%emt 0:00:10]} Kb2 {[%emt 0:00:03]} 49. f7 {[%emt 0:00:03]} Kxa2 {[%emt 0:00:03]} 50. f8=Q {[%emt 0:00:04]} Kxb3 {[%emt 0:00:06]} 51. Qc5 {[%emt 0:00:20]} a2 {[%emt 0:01:05]} 52. Qc1 {[%emt 0:00:02]} Ka4 {[%emt 0:00:10]} 53. Qb2 {[%emt 0:00:12]} b3 {[%emt 0:00:03]} 54. Kf4 {[%emt 0:00:06] Weighted Error Value: White=0.17 (very precise) /Black=0.31} 1-0

[Event "31st Kavala Open-A 2022"]
[Site "Kavala"]
[Date "2022.07.28"]
[Round "4.3"]
[White "Yilmazyerli, Mert"]
[Black "Maltsevskaya, Aleksandra"]
[Result "1-0"]
[ECO "D74"]
[WhiteElo "2520"]
[BlackElo "2378"]
[Annotator "TA"]
[PlyCount "69"]
[EventDate "2022.07.27"]
[EventType "swiss"]
[EventCountry "GRE"]
[SourceTitle "playchess.com"]
[Source "ChessBase"]
[SourceQuality "1"]
[TimeControl "40/5400+30:1800+30"]

{[%evp 20,69,22,27,52,58,46,55,89,50,83,74,77,36,54,49,115,107,250,254,297,307,395,395,408,399,386,408,420,420,420,420,419,420,420,420,418,413,423,392,446,451,488,479,514,499,510,506,814,767,995,968]} 1. Nf3 {[%emt 0:11:06]} d5 {[%emt 0:00:37]} 2. g3 {[%emt 0:00:23]} g6 {[%emt 0:00:11]} 3. Bg2 {[%emt 0:00:08]} Bg7 {[%emt 0:00:09]} 4. d4 {[%emt 0:00:08]} Nf6 {[%emt 0:01:34]} 5. O-O {[%emt 0:00:49]} O-O {[%emt 0:00:11]} 6. c4 {[%emt 0:00:06]} Nc6 {[%emt 0:02:55][%cal Bb8c6,Bc6a5,Ba5c4][%mdl 32]} 7. cxd5 {[%emt 0:01:02]} Nxd5 {[%emt 0:00:06]} 8. e4 {[%emt 0:00:04]} Nb6 {[%emt 0:00:10]} 9. d5 {[%emt 0:00:05]} Na5 {[%emt 0:00:10]} 10. Qe1 {[%emt 0:00:08]} Nac4 {[%emt 0:05:24]} 11. Nc3 {[%emt 0:00:05]} c6 {[%emt 0:05:11][%cal Rc6d5] D74: Fianchetto Grünfeld: Main Line (5 Nf3 0-0 6 cxd5 Nxd5 7 0-0).} 12. b3 {[%emt 0:00:56]} Nd6 {[%emt 0:01:01][%cal Od6e4]} 13. e5 {[%emt 0:02:01]} Nb5 {[%emt 0:00:24] White is slightly better.} 14. Nxb5 {[%emt 0:16:19]} cxb5 {[%emt 0:00:08]} 15. d6 $1 {[%emt 0:00:13]} exd6 {[%emt 0:02:37]} 16. Ba3 {[%emt 0:02:04][%cal Bc1a3,Ba3d6,Bd6b4][%mdl 32]} (16. Bg5 $5 {[%cal Rg5d8]} f6 17. exf6 Bxf6 18. Qd2 $11) 16... Re8 {[%emt 0:02:46][%cal Rd6e5]} 17. Bxd6 {[%emt 0:01:23]} Bg4 {[%emt 0:01:08] [#]} (17... Bd7 $14) 18. Rd1 $1 $16 {[%emt 0:01:48]} Nd7 {[%emt 0:06:56] Loses the game.} (18... h5 $16) 19. Qe4 $1 $18 {[%emt 0:00:56][%csl LRb7,LRg4]} Bxf3 {[%emt 0:07:03] [#]} 20. Bxf3 $146 {[%emt 0:06:58]} ({Predecessor:} 20. Qxf3 Qa5 21. Qxb7 Nxe5 22. h3 g5 23. Rd5 Qc3 24. Qxb5 Rac8 25. Rc5 Qd4 26. Rd5 {1-0 (49) Granda Zuniga,J (2599)-Pereira,R (2418) Evora 2008}) 20... Qa5 {[%emt 0:06:50][%cal Rd7e5]} 21. Bb4 {[%emt 0:01:33] This bishop pair is nice.} Qc7 {[%emt 0:05:04]} 22. Qxb7 {[%emt 0:00:18]} Qxb7 {[%emt 0:00:45]} 23. Bxb7 {[%emt 0:00:05]} Rad8 {[%emt 0:00:19]} 24. Bc6 {[%emt 0:01:18][%csl LRb5,LRd7]} Nxe5 {[%emt 0:00:08]} 25. Bxe8 {[%emt 0:00:04]} Rxe8 {[%emt 0:00:05]} 26. Kg2 {[%emt 0:00:28]} Nc6 {[%emt 0:00:16]} 27. Rfe1 {[%emt 0:00:13]} Ra8 {[%emt 0:01:02]} 28. Bc5 {[%emt 0:00:13]} Bc3 {[%emt 0:01:20]} 29. Re4 {[%emt 0:01:54]} a5 {[%emt 0:02:20]} 30. Rd7 {[%emt 0:01:35] White is clearly winning.} Rc8 {[%emt 0:01:13]} 31. Bb6 {[%emt 0:00:42]} Rb8 {[%emt 0:01:35]} 32. Bc7 {[%emt 0:01:17]} Rc8 {[%emt 0:00:10]} 33. a4 {[%emt 0:00:39]} b4 {[%emt 0:00:40]} (33... bxa4 $142 34. bxa4 Bb4) 34. Rc4 {[%emt 0:00:52]} Nd4 {[%emt 0:00:08]} 35. Be5 {[%emt 0:00:05] Weighted Error Value: White=0.05 (flawless) /Black=0.32} 1-0

[Event "31st Kavala Open-A 2022"]
[Site "Kavala"]
[Date "2022.07.28"]
[Round "4.4"]
[White "Kanakaris, Georgios"]
[Black "Karthik Venkataraman"]
[Result "1/2-1/2"]
[ECO "A37"]
[WhiteElo "2389"]
[BlackElo "2483"]
[Annotator "TA"]
[PlyCount "39"]
[EventDate "2022.07.27"]
[EventType "swiss"]
[EventCountry "GRE"]
[SourceTitle "playchess.com"]
[Source "ChessBase"]
[SourceQuality "1"]
[TimeControl "40/5400+30:1800+30"]

{[%evp 11,39,-2,0,0,2,0,8,-18,0,-19,0,-2,0,-28,-28,-45,-4,-20,0,-17,23,14,24,30,36,36,28,18,30,7]} 1. Nf3 {[%emt 0:00:05]} c5 {[%emt 0:04:26]} 2. g3 {[%emt 0:00:45]} Nc6 {[%emt 0:00:08]} 3. c4 {[%emt 0:01:22]} g6 {[%emt 0:00:06]} 4. Nc3 {[%emt 0:00:17]} Bg7 {[%emt 0:00:04]} 5. Bg2 {[%emt 0:00:05]} d6 {[%emt 0:00:03]} 6. d3 {[%emt 0:02:01]} e6 {[%emt 0:00:37]} 7. h4 {[%emt 0:07:59] is now debated instead of 7.0-0. A37: Symmetrical English vs ...g6: 4 Bg2 Bg7 5 Nf3.} h6 {[%emt 0:00:17]} 8. Bd2 {[%emt 0:00:28]} Nge7 {[%emt 0:00:07]} 9. Qc1 {[%emt 0:02:00] The position is equal.} Rb8 {[%emt 0:06:10] [#]} 10. O-O $146 {[%emt 0:11:02]} ({Predecessor:} 10. Rb1 Nf5 11. O-O Ncd4 12. Nxd4 cxd4 13. Ne4 O-O 14. g4 Nxh4 15. Bxh6 f6 16. Bxg7 Kxg7 {0-1 (61) Ipatov,A (2613)-Vitiugov,N (2742) Dubai 2014}) 10... b6 {[%emt 0:00:48]} 11. e4 {[%emt 0:01:28]} Bb7 {[%emt 0:00:47]} 12. Ne2 {[%emt 0:28:57]} Ne5 {[%emt 0:00:51]} 13. Qc2 {[%emt 0:00:43]} O-O {[%emt 0:01:31]} 14. Bc3 {[%emt 0:00:45]} Qc7 {[%emt 0:02:58]} 15. Nh2 {[%emt 0:01:33]} d5 {[%emt 0:05:20]} 16. cxd5 {[%emt 0:01:52]} exd5 {[%emt 0:00:07]} 17. f4 {[%emt 0:00:04]} Nd7 {[%emt 0:07:42]} 18. Bxg7 {[%emt 0:00:23]} Kxg7 {[%emt 0:00:03]} 19. Rae1 {[%emt 0:08:19]} Rbe8 {[%emt 0:01:56]} 20. g4 {[%emt 0:08:07] Weighted Error Value: White=0.09 (flawless) /Black=0.10 (very precise)} 1/2-1/2